Cogmind - Beta 14 @@@ ROGUE MODE // 2025.04.29 @ 10:49:42 Player: Florist Result: Destroyed by S-10 Pest with Light Assault Rifle Performance ------------- Evolutions (0) 0 Regions Visited (2) 400 Robots Destroyed (24) 120 Value Destroyed (470) 470 Prototype IDs (0) 0 Alien Tech Used (0) 0 Bonus (0) 0 TOTAL SCORE: 990 Bonus ------- None Cogmind --------- Core Integrity 0/250 Matter 280/300 Energy 95/100 System Corruption 0% Temperature Cool (85) Movement Treading (240) Ox1 Location -10/Mines Parts ------- > --- POWER (1) -------- (None) > --- PROPULSION (2) --- Light Treads Light Treads > --- UTILITY (2) ------ High-capacity Storage Unit > --- WEAPON (2) ------- Particle Gun Grenade Launcher > --- INVENTORY (20) --- Light Ion Engine High-capacity Storage Unit Large Matter Pod (150) Large Matter Pod (54) Signal Interpreter Targeting Computer Assault Rifle Assault Rifle Assault Rifle Grenade Launcher Hammer Peak State ------------ > --- POWER ------------ (None) > --- PROPULSION ------- Light Treads Light Treads > --- UTILITY ---------- High-capacity Storage Unit > --- WEAPON ----------- Particle Gun Assault Rifle > --- INVENTORY -------- Light Ion Engine High-capacity Storage Unit Large Matter Pod Signal Interpreter Targeting Computer Assault Rifle Assault Rifle Grenade Launcher Grenade Launcher Hammer [Rating: 7] Favorites ----------- Power None Propulsion Light Treads Treads Light Treads Leg Aluminum Leg Utility High-capacity Storage Unit Storage High-capacity Storage Unit Weapon Light Assault Rifle Energy Gun Particle Gun Ballistic Gun Light Assault Rifle Launcher Grenade Launcher Build | -11 -10 -10 ------- Run | Yrd Mat Min Slots Evolved . | . . . Power . | . . . Propulsion . | . . . Utility . | . . . Weapon . | . . . Parts Attached 25 | 5 19 1 Power . | . . . Engine . | . . . Core . | . . . Reactor . | . . . Propulsion 10 | 2 8 . Treads 6 | 2 4 . Leg 4 | . 4 . Wheel . | . . . Hover . | . . . Flight . | . . . Utility 3 | 1 2 . Device . | . . . Storage 3 | 1 2 . Processor . | . . . Hackware . | . . . Protection . | . . . Artifact . | . . . Weapon 12 | 2 9 1 Energy Gun 5 | 1 4 . Energy Cannon . | . . . Ballistic Gun 6 | 1 5 . Ballistic Cannon . | . . . Launcher 1 | . . 1 Special Weapon . | . . . Impact Weapon . | . . . Slashing Weapon . | . . . Piercing Weapon . | . . . Special Melee Weapon . | . . . Unidentified Prototypes . | . . . Parts Lost 4 | . 4 . Power . | . . . Propulsion 2 | . 2 . Utility . | . . . Weapon 2 | . 2 . Highest Loss Streak 2 | . 2 . To Critical Strikes . | . . . Average Slot Usage (%) 69 | . 69 71 Treads 22 | . 22 28 Leg 4 | . 4 . Storage 14 | . 14 14 Energy Gun 6 | . 6 14 Ballistic Gun 20 | . 21 . Peak Build Rating 7 | 5 7 7 Average Rating 5 | 3 5 7 On Entrance 4 | . 5 7 Naked Turns . | . . . Heaviest Build 82 | 7 82 46 Greatest Support 40 | 40 40 40 Greatest Overweight (x) 27 | . 27 1 Average Overweight (x) 1 | . 1 1 Largest Inventory Capacity 25 | 8 25 20 Average Capacity 18 | 6 19 20 Most Carried 11 | 3 11 11 Average Carried 6 | . 5 11 Final Capacity 20 | 8 20 20 Final Carried 11 | 1 11 11 Class Distribution -------------------- 69% | Mutant 30% | Scavenger-Mutant Dominant Class ---------------- Mutant | -10/Materials Mutant | -10/Mines Resources | -11 -10 -10 ----------- Run | Yrd Mat Min Matter Collected 810 | 203 580 27 Remotely . | . . . Salvage Created 612 | . 580 32 Parts 57 | . 49 8 Haulers Intercepted 2 | . 2 . Recyclers Shooed . | . . . Parts Field Recycled . | . . . Retrieved Matter . | . . . Parts Self-Destructed . | . . . Prevented . | . . . Kills | -11 -10 -10 ------- Run | Yrd Mat Min Combat Hostiles Destroyed 19 | . 14 5 Guns 14 | . 14 . AOE 5 | . . 5 Classes Destroyed 4 | . 4 . Hauler 2 | . 2 . Watcher 3 | . 3 . Swarmer 11 | . 6 5 Grunt 8 | . 8 . Best Kill Streak 6 | . 6 3 Combat Bots Only 6 | . 6 3 Max Kills in Single Turn 3 | . 1 3 Gunslinging . | . . . Exploded 3 | . . 3 Melee . | . . . Uniques/NPCs Destroyed . | . . . Combat | -11 -10 -10 -------- Run | Yrd Mat Min Hostile Shots Fired 123 | . 98 25 Missed 25 | . 19 6 Damage Taken 1050 | . 857 193 Core 253 | . 178 75 Absorbed by Shields . | . . . Core Remaining (%) 100 | 100 . . Volleys Fired 118 | . 105 13 Largest 2 | . 2 1 Hottest 85 | . 85 65 Shots Fired 215 | . 202 13 Gun 212 | . 202 10 Cannon . | . . . Launcher 3 | . . 3 Special . | . . . Kinetic 164 | . 164 . Thermal 48 | . 38 10 Explosive 3 | . . 3 Electromagnetic . | . . . Robot Hit Streak 10 | . 10 2 Robot Miss Streak 4 | . 4 4 Penetration Max . | . . . Secondary Targets 4 | . 4 . Max Gunslinging Chain 1 | . 1 . Shots Hit Robots 131 | . 126 5 Core Hits 46 | . 43 3 Critical Kills . | . . . Critical Parts Destroyed . | . . . Critical Strikes 2 | . 1 1 Burn 2 | . 1 1 Melee Attacks . | . . . Impact . | . . . Slashing . | . . . Piercing . | . . . Sneak Attacks . | . . . Combat Hostiles . | . . . Follow-up Attacks . | . . . Damage Inflicted 1542 | . 1230 312 Guns 1281 | . 1230 51 Cannons . | . . . Explosions 261 | . . 261 Melee . | . . . Ramming . | . . . Kinetic 854 | . 854 . Thermal 427 | . 376 51 Explosive 261 | . . 261 Electromagnetic . | . . . Impact . | . . . Slashing . | . . . Piercing . | . . . Highest Corruption . | . . . Average Corruption . | . . . Corruption Purged . | . . . Corruption Blocked . | . . . Overload Shots . | . . . Overflow Damage 42 | . . 42 Projectiles . | . . . Explosions 42 | . . 42 Melee . | . . . Knockbacks . | . . . Impact . | . . . Kinetic . | . . . Secondary . | . . . Self-Inflicted Damage 39 | . . 39 Shots 1 | . . 1 Rammed . | . . . Targets Rammed . | . . . Kicked . | . . . Crushed . | . . . Highest Temperature 170 | . 170 98 Average Temperature 39 | . 37 57 Received Heat Transfer 360 | . 360 . Siege Activations . | . . . Robots Corrupted . | . . . Combat Hostiles . | . . . Parts Fried . | . . . Impact Corruptions . | . . . Robots Melted . | . . . Combat Hostiles . | . . . Parts Melted . | . . . Heat Transferred 1150 | . 965 185 Parts Sabotaged . | . . . Parts Stolen . | . . . Parts Stripped . | . . . Power Chain Reactions . | . . . Alert | -11 -10 -10 ------- Run | Yrd Mat Min Peak Influence 180 | . 180 156 Initial . | . . . Average 35 | . 34 86 Maximum Alert Level . | . . . Low Security (%) 100 | 100 100 100 Level 1 . | . . . Level 2 . | . . . Level 3 . | . . . Level 4 . | . . . Level 5 . | . . . High Security . | . . . Max Security . | . . . Squads Dispatched 1 | . 1 . Investigation . | . . . Extermination . | . . . Reinforcement 1 | . 1 . Assault . | . . . Garrison . | . . . Intercept . | . . . Searches Triggered . | . . . Construction Impeded . | . . . Haulers Reinforced . | . . . Active Scanning Responses . | . . . Cargo Convoy Interrupts . | . . . Stealth | -11 -10 -10 --------- Run | Yrd Mat Min Distress Signals . | . . . Communications Jammed . | . . . Distress Signals . | . . . Times Spotted 41 | . 35 6 Peak Tracking Total 6 | . 6 3 Tactical Retreats 1 | . 1 . Traps | -11 -10 -10 ------- Run | Yrd Mat Min Traps Triggered 4 | . 4 . Indirectly . | . . . Trap Hack Attempts . | . . . Triggered . | . . . Disarmed . | . . . Reprogrammed . | . . . Reused . | . . . Traps Extracted . | . . . Installed . | . . . Triggered . | . . . Machines | -11 -10 -10 ---------- Run | Yrd Mat Min Machines Disabled 1 | . . 1 Max in Single Turn 1 | . . 1 Machines Repaired . | . . . Machines Dismantled . | . . . Machines Sabotaged . | . . . Overloaded Fab Kills . | . . . Hacking | -11 -10 -10 --------- Run | Yrd Mat Min Machines Accessed 4 | . 4 . Terminals 2 | . 2 . Fabricators . | . . . Repair Stations . | . . . Recycling Units 2 | . 2 . Scanalyzers . | . . . Garrison Access . | . . . Total Hacks 5 | . 5 . Successful 4 | . 4 . Failed 1 | . 1 . Catastrophic 1 | . 1 . Database Lockouts . | . . . Manual 3 | . 3 . Terminals 3 | . 3 . Fabricators . | . . . Repair Stations . | . . . Recycling Units 2 | . 2 . Scanalyzers . | . . . Garrison Access . | . . . Terminal Hacks . | . . . Fabricator Hacks . | . . . Repair Station Hacks . | . . . Recycling Unit Hacks 2 | . 2 . Retrieve Components 2 | . 2 . Scanalyzer . | . . . Garrison Access Hacks . | . . . Unauthorized Hacks 2 | . 2 . Terminals 2 | . 2 . Botnet 2 | . 2 . Fabricators . | . . . Repair Stations . | . . . Recycling Units . | . . . Scanalyzers . | . . . Garrison Access . | . . . Data Cores Recovered . | . . . Used . | . . . Hacking Detections 2 | . 2 . Full Trace Events . | . . . Feedback Events . | . . . Feedback Blocked . | . . . Robot Schematics Acquired . | . . . Robots Built . | . . . Authchips . | . . . Time . | . . . Total Robot Build Rating . | . . . Part Schematics Acquired . | . . . Parts Built . | . . . Authchips . | . . . Time . | . . . Total Part Build Rating . | . . . Parts Repaired . | . . . Time . | . . . Parts Recycled . | . . . Recycled Matter . | . . . Retrieved Matter . | . . . Retrieved Components 16 | . 16 . Parts Scanalyzed . | . . . Part Schematics Acquired . | . . . Parts Damaged . | . . . Bothacking | -11 -10 -10 ------------ Run | Yrd Mat Min Used RIF Installer . | . . . Robots Hacked . | . . . Non-combat . | . . . Combat . | . . . Robot Hacks Applied . | . . . Relay Couplers Released . | . . . Fabnet Peak Effective % . | . . . Robots Rewired . | . . . Allies Hacked . | . . . Hacks Repelled . | . . . Allies | -11 -10 -10 -------- Run | Yrd Mat Min Total Allies . | . . . Largest Group . | . . . Highest-Rated Group . | . . . Highest-Rated Ally . | . . . Total Orders . | . . . Ally Attacks . | . . . Total Damage . | . . . Kills . | . . . Allies Corrupted . | . . . Allies Melted . | . . . Intel | -11 -10 -10 ------- Run | Yrd Mat Min Robot Analysis Total . | . . . Derelict Logs Recovered . | . . . Drone Launches . | . . . Drone Recoveries . | . . . Exploration | -11 -10 -10 ------------- Run | Yrd Mat Min Turns Passed 3657 | 85 3413 159 Spaces Moved 1334 | 48 1231 55 Core 17 | 6 11 . Treads 1189 | 42 1092 55 Legs 128 | . 128 . Wheels . | . . . Hover . | . . . Flight . | . . . Fastest Speed 50 | 50 100 240 Average Speed 243 | 146 247 240 Slowest Speed 1400 | 160 1400 240 Overloaded Moves . | . . . Propulsion Burnouts . | . . . Robots Hopped . | . . . Cave-ins Triggered . | . . . Exploration Rate (%) 42 | 6 100 20 Regions Visited 2 Branch Regions 1 Pre-discovered Areas . | . . . Known Exits Taken . | . . . Unknown Exits Taken 2 | 1 1 . Scrap Searched . | . . . Spaces Dug . | . . . Terrain Destroyed 21 | . . 21 Melee . | . . . Projectile . | . . . AOE 21 | . . 21 Terrain Rammed . | . . . Walls Destroyed . | . . . Machines Disabled . | . . . Actions | -11 -10 -10 --------- Run | Yrd Mat Min Total 1567 | 63 1435 69 Wait 46 | 5 41 . Move 1332 | 47 1230 55 Hop . | . . . Pick Up 36 | 6 30 . Fast Attach . | . . . Attach 21 | 5 16 . Detach . | . . . Swap 4 | . 3 1 Drop 10 | . 10 . Fire 118 | . 105 13 Melee . | . . . Ram . | . . . Kick . | . . . Crush . | . . . Escape Stasis . | . . . Rewire . | . . . Trap . | . . . Miscellaneous . | . . . Route ------- -11/Scrapyard -10/Materials (discovered 5 exits: [*Mat x3] / [*Min] / [*Sub]) -10/Mines History --------- Turn | Location | Event 10 | -11/Scrapyard | Discovered new exit (range 15) 86 | -11/Scrapyard | Entered Materials 315 | -10/Materials | Build established: Mutant 408 | -10/Materials | Discovered new exit (range 16) 525 | -10/Materials | Discovered new exit (range 5) 1020 | -10/Materials | Discovered new exit (range 11) 1231 | -10/Materials | Core integrity fell below 50% 1740 | -10/Materials | Build established: Scavenger-Mutant 2188 | -10/Materials | Discovered new exit (range 11) 2609 | -10/Materials | Discovered new exit (range 9) 2801 | -10/Materials | Build established: Mutant 3499 | -10/Materials | Entered Mines 3633 | -10/Mines | Core integrity fell below 20% 3658 | -10/Mines | Destroyed by S-10 Pest with Light Assault Rifle Last Messages --------------- 03336_ K-01 Serf cleans the Terminal. 03337_ K-01 Serf cleans the Machine. 03339_ K-01 Serf cleans the Terminal. 03350_ Acquired 77 matter. 03424_ Acquired 43 matter. 03427_ Acquired 20 matter. LOCATION=UNKNOWN GOAL=ESCAPE 03503_ Destroyed Flight Unit. 03503_ S-10 Pest destroyed. 03522_ Acquired 7 matter. 03525_ Acquired 8 matter. 03532_ Acquired 12 matter. 03633_ Destroyed Lgt. Ion Engine. 03633_ S-10 Pest destroyed. 03635_ Destroyed Flight Unit. 03635_ Core Extractor disabled. 03641_ S-10 Pest suffers critical hit (Burn). 03643_ S-10 Pest heat short circuits Lgt. Ion Engine. 03653_ Destroyed Broken Lgt. Ion Engine. Map ----- +----------------------------------------------------+ | ????## #?????????? | | ????# ## #?????????? | | ????# ## ##? ?????????? | | ????## ##?## #??# #?????????? | | ?????# #????? #??? ??????????? | | ?????# #?????? ?????????????? | | ?????# #??????? ##????????????? | | ?????# #????????###?????????????? | | ?????# #????????????????????????? | | ?????# #????????????????????????? | | ?????# #????????????????????????? | | ?????# #????????????????????????? | | ?????# #????????????????????????? | | ?????# #????????????????????????? | | ?????# #????????????????????????? | | ?????# #????????????????????????? | | ?????# #????????????????????????? | | ?????# #????????????????????????? | | ?????# #????????????????????????? | | ?????# #????????????????????????? | | ?????# ########?????????????????? | | ?????# ??????????? | | ?????# #########????????????????? | | ????## #### ###??????????????? | | ????# [ s #??????????????? | | ????# @%= #???????????????? | | ????### =* #??????????????? | | ??????#### """ #??????????????? | | ?????????? """ ##??????????????? | | ??????????? #???????????????? | | ????????????####????????????????? | | ????????????????????????????????? | | | | | | | | | | | | | | | | | | | | | | | | | | | | | | | | | | | | | +----------------------------------------------------+ Best States ------------- Heat Dissipation 25 Energy Generation 5 Energy Capacity 100 Matter Stores 300 Matter Capacity 300 Sight Range 16 Terrain Scan Density 10 Evasion (%) 40 Recoil Reduction 2 Item Schematics ----------------- None Robot Schematics ------------------ None Fabricated ------------ Nothing Alien Tech Used ----------------- None Achievements -------------- None Challenges ------------ None Game ------ Seed CouplerDrainedFlightbrick Manual? 0 Play Time 00:12:38 Cumulative 62.1 hours Start 2025.04.29 @ 10:37:45 End 2025.04.29 @ 10:49:42 Sessions 1 Manual Loads 0 Difficulty Rogue Special Mode None Game No. 77 Rogue 77 Adventurer 0 Explorer 0 Win Type - Total 0 Types 0/0/0/0/0/0/0/0/0 Lore% 14 Gallery% 43 Achievement% 38 Wizard Run 0 Options --------- Layout 1 ASCII 0 Keyboard 0 Movement Mouse Keybinds 0 Fullscreen 1 Font 32/SmallcapsGlow Map View 77x35 Zoom Use 0% Tactical HUD 1 Map Filters NONE Filters NONE Steam 1 RUN: e3b00a64-be52-42d1-b2f1-180f6370e4a6